[Event "11th American Continental Women 2018"]
[Site "Envigado"]
[Date "2018.11.20"]
[Round "6.13"]
[White "Gomez Guardo, Laura Meli"]
[Black "Ocampo, Cristina"]
[Result "1/2-1/2"]
[ECO "A00"]
[WhiteElo "1842"]
[BlackElo "1771"]
[Annotator "NA RC"]
[PlyCount "87"]
[EventDate "2018.11.17"]
[EventType "swiss"]
[EventRounds "9"]
[EventCountry "COL"]
[SourceTitle "playchess.com"]
[Source "ChessBase"]
[SourceQuality "1"]
[TimeControl "40/5400+30:1800+30"]

1. d4 d5 2. c4 c6 3. Nc3 Nf6 4. Nf3 e6 5. Bg5 Be7 6. e3 Ne4 7. Bxe7 Qxe7 8. Qc2 Nxc3 9. Qxc3 Nd7 10. Bd3 O-O 11. e4 dxc4 12. Bxc4 c5 13. O-O cxd4 14. Nxd4 b6 15. Rfd1 Bb7 16. Qe3 Ne5 17. Bb3 Rfd8 18. h3 Qh4 19. Re1 Nd7 20. Nb5 Nc5 21. Bc2 e5 22. b4 Ne6 23. Rad1 Qe7 24. a3 a6 25. Nc3 Nd4 26. Bb1 Rac8 27. Rd3 Rd6 28. Red1 Rcd8 29. Ne2 Nxe2+ 30. Qxe2 Qc7 31. Rxd6 Rxd6 32. Rxd6 Qxd6 33. Qd3 Qxd3 34. Bxd3 Kf8 35. Kf1 Ke7 36. Ke2 a5 37. Ke3 f5 38. g3 fxe4 39. Bc4 Kf6 40. h4 axb4 41. axb4 Ba8 42. Bb3 Bc6 43. Bc4 Bb7 44. Bb3 1/2-1/2

[Event "11th American Continental Women 2018"]
[Site "Envigado"]
[Date "2018.11.20"]
[Round "6.14"]
[White "Moncada Correa, Sara"]
[Black "Caballero Marrugo, Maria Jose"]
[Result "1-0"]
[ECO "A00"]
[WhiteElo "1792"]
[BlackElo "1338"]
[Annotator "NA RC"]
[PlyCount "85"]
[EventDate "2018.11.17"]
[EventType "swiss"]
[EventRounds "9"]
[EventCountry "COL"]
[SourceTitle "playchess.com"]
[Source "ChessBase"]
[SourceQuality "1"]
[TimeControl "40/5400+30:1800+30"]

1. d4 Nf6 2. c4 e6 3. Nf3 b6 4. g3 Bb7 5. Bg2 Bb4+ 6. Bd2 Bxd2+ 7. Nbxd2 O-O 8. O-O d6 9. Qc2 Nbd7 10. Rac1 c5 11. Rfd1 Qe7 12. e4 h6 13. d5 e5 14. Re1 Nh7 15. Nf1 Ng5 16. Nxg5 Qxg5 17. Ne3 Nf6 18. Bf3 Bc8 19. h4 Qg6 20. Nf5 Bxf5 21. exf5 Qh7 22. Re3 g5 23. fxg6 fxg6 24. Qa4 Qd7 25. Qxd7 Nxd7 26. Bg4 Rad8 27. Ra3 a5 28. Rb3 Nf6 29. Be6+ Kh8 30. Rxb6 Ne4 31. Rc2 g5 32. hxg5 Nxg5 33. Bg4 Nf3+ 34. Bxf3 Rxf3 35. Kg2 Rf7 36. Ra6 h5 37. Rxa5 Rg7 38. Rc3 Rdg8 39. Ra6 Rg6 40. a3 Kh7 41. b4 cxb4 42. axb4 Kh6 43. c5 1-0

[Event "11th American Continental Women 2018"]
[Site "Envigado"]
[Date "2018.11.20"]
[Round "6.15"]
[White "Zapata, Olga Maria"]
[Black "Prado, Alexandra"]
[Result "0-1"]
[ECO "A00"]
[WhiteElo "1695"]
[BlackElo "1873"]
[Annotator "NA RC"]
[PlyCount "88"]
[EventDate "2018.11.17"]
[EventType "swiss"]
[EventRounds "9"]
[EventCountry "COL"]
[SourceTitle "playchess.com"]
[Source "ChessBase"]
[SourceQuality "1"]
[TimeControl "40/5400+30:1800+30"]

1. d4 Nf6 2. c4 g6 3. Nc3 Bg7 4. e4 d6 5. f3 O-O 6. Be3 Nc6 7. Qd2 a6 8. Nge2 Rb8 9. Ng3 Bd7 10. Be2 e6 11. O-O Re8 12. Rad1 e5 13. d5 Nd4 14. Bd3 c5 15. dxc6 bxc6 16. Nge2 c5 17. Rb1 h5 18. Bg5 Qc7 19. b3 Nh7 20. Be3 h4 21. Nd5 h3 22. g3 Qd8 23. f4 Bg4 24. Bxd4 exd4 25. Rbe1 Bh6 26. Qc2 Rb7 27. e5 dxe5 28. Bxg6 fxg6 29. Qxg6+ Rg7 30. Qxh6 d3 31. Nec3 Re6 32. Qh4 Qxh4 33. gxh4 Be2+ 34. Kh1 Bxf1 35. Rxf1 exf4 36. Nxf4 Rf6 37. Ncd5 Rf8 38. Rd1 Re8 39. Nxd3 Re4 40. N3f4 Rf7 41. Rg1+ Kf8 42. Ng6+ Ke8 43. Nh8 Rf2 44. Ng6 Ree2 0-1

[Event "11th American Continental Women 2018"]
[Site "Envigado"]
[Date "2018.11.23"]
[Round "8"]
[White "Rivera, Ingris"]
[Black "Miranda Rodriguez, Tania"]
[Result "1-0"]
[ECO "A58"]
[WhiteElo "2188"]
[BlackElo "2246"]
[Annotator "ChessBase"]
[PlyCount "79"]
[EventDate "2018.11.17"]
[EventType "swiss"]
[EventRounds "9"]
[EventCountry "COL"]
[SourceTitle "playchess.com"]
[Source "ChessBase"]
[SourceQuality "1"]
[TimeControl "40/5400+30:1800+30"]

1. d4 {[%emt 0:00:00]} Nf6 {[%emt 0:00:00]} 2. c4 {[%emt 0:00:00]} c5 {[%emt 0:00:03]} 3. d5 {[%emt 0:00:00]} b5 {[%emt 0:00:07]} 4. cxb5 {[%emt 0:00:07]} a6 {[%emt 0:00:04]} 5. bxa6 {[%emt 0:00:21]} g6 {[%emt 0:00:20]} 6. Nc3 {[%emt 0:00:29]} Bg7 {[%emt 0:00:13]} 7. a7 {[%emt 0:00:07]} Rxa7 {[%emt 0:00:43]} 8. e4 {[%emt 0:00:08]} O-O {[%emt 0:01:30]} 9. f4 {[%emt 0:02:11]} e6 {[%emt 0:04:39]} 10. dxe6 {[%emt 0:04:07]} fxe6 {[%emt 0:03:10]} 11. Nf3 {[%emt 0:07:45]} Bb7 {[%emt 0:09:36]} 12. Qc2 {[%emt 0:09:47]} Nc6 {[%emt 0:30:39]} 13. Be3 {[%emt 0:20:28]} Nb4 {[%emt 0:16:36]} 14. Qb1 {[%emt 0:03:40]} d6 {[%emt 0:01:28]} 15. Be2 {[%emt 0:06:15]} Qa8 {[%emt 0:00:59]} 16. Nd2 {[%emt 0:04:26]} Nd7 {[%emt 0:02:58]} 17. Nb5 {[%emt 0:03:19]} d5 {[%emt 0:09:45]} 18. Nxa7 {[%emt 0:06:57]} Qxa7 {[%emt 0:00:05]} 19. a3 {[%emt 0:00:38]} Nc6 {[%emt 0:01:55]} 20. Bg4 {[%emt 0:04:14]} Nd8 {[%emt 0:03:19]} 21. O-O {[%emt 0:07:48]} d4 {[%emt 0:01:45]} 22. Bf2 {[%emt 0:01:04]} Rxf4 {[%emt 0:00:15]} 23. Be2 {[%emt 0:04:07]} Qa8 {[%emt 0:02:43]} 24. Bf3 {[%emt 0:02:42]} Ba6 {[%emt 0:01:16]} 25. Bg3 {[%emt 0:00:48]} Rf7 {[%emt 0:01:19]} 26. Re1 {[%emt 0:02:38]} Bh6 {[%emt 0:00:50]} 27. Nf1 {[%emt 0:00:39]} c4 {[%emt 0:02:03]} 28. b4 {[%emt 0:04:48]} Bb5 {[%emt 0:02:51]} 29. a4 {[%emt 0:01:49]} Bxa4 {[%emt 0:00:45]} 30. Bd1 {[%emt 0:01:40]} Nb6 {[%emt 0:00:10]} 31. Bxa4 {[%emt 0:00:27]} Nxa4 {[%emt 0:00:05]} 32. Qa2 {[%emt 0:00:22]} Ra7 {[%emt 0:01:35]} 33. Qxc4 {[%emt 0:01:16]} Bg7 {[%emt 0:01:56]} 34. e5 {[%emt 0:00:25]} Qb8 {[%emt 0:00:44]} 35. Qxd4 {[%emt 0:00:39]} Nc6 {[%emt 0:00:26]} 36. Qc4 {[%emt 0:00:47]} Nxb4 {[%emt 0:00:30]} 37. Qxe6+ {[%emt 0:00:36]} Kh8 {[%emt 0:00:17]} 38. Rec1 {[%emt 0:00:27]} Nb6 {[%emt 0:00:32]} 39. Rxa7 {[%emt 0:00:23]} Qxa7 {[%emt 0:00:04]} 40. Qe8+ {[%emt 0:00:00]} 1-0

[Event "11th American Continental Women 2018"]
[Site "Envigado"]
[Date "2018.11.24"]
[Round "9"]
[White "Marrero Lopez, Yaniet"]
[Black "Fernandez, Maria Florencia"]
[Result "1/2-1/2"]
[ECO "C02"]
[WhiteElo "2253"]
[BlackElo "2198"]
[Annotator "NA"]
[PlyCount "64"]
[EventDate "2018.11.17"]
[EventType "swiss"]
[EventRounds "9"]
[EventCountry "COL"]
[SourceTitle "playchess.com"]
[Source "ChessBase"]
[SourceQuality "1"]
[TimeControl "40/5400+30:1800+30"]

1. e4 {[%emt 0:00:18]} e6 {[%emt 0:00:00]} 2. d4 {[%emt 0:00:06]} d5 {[%emt 0:00:00]} 3. e5 {[%emt 0:00:06]} c5 {[%emt 0:00:07]} 4. c3 {[%emt 0:00:07]} Nc6 {[%emt 0:00:26]} 5. Nf3 {[%emt 0:00:13]} Bd7 {[%emt 0:00:27]} 6. a3 {[%emt 0:00:17]} f6 {[%emt 0:00:23]} 7. Bd3 {[%emt 0:00:32]} Qc7 {[%emt 0:00:21]} 8. Qe2 {[%emt 0:00:55]} c4 {[%emt 0:17:10]} 9. Bc2 {[%emt 0:00:22]} O-O-O {[%emt 0:00:05]} 10. O-O {[%emt 0:05:39]} Nh6 {[%emt 0:07:50]} 11. Bxh6 {[%emt 0:05:28]} gxh6 {[%emt 0:00:02]} 12. exf6 {[%emt 0:00:08]} Bd6 {[%emt 0:02:25]} 13. Nbd2 {[%emt 0:00:29]} Rdf8 {[%emt 0:01:15]} 14. Rae1 {[%emt 0:11:21]} Rxf6 {[%emt 0:02:09]} 15. Ne5 {[%emt 0:00:26]} Bxe5 {[%emt 0:12:25]} 16. dxe5 {[%emt 0:00:12]} Rf7 {[%emt 0:00:52]} 17. Qe3 {[%emt 0:11:24]} Rg7 {[%emt 0:09:58]} 18. f4 {[%emt 0:25:14]} Re8 {[%emt 0:07:14]} 19. Nf3 {[%emt 0:01:17]} Kb8 {[%emt 0:03:33]} 20. Nd4 {[%emt 0:00:11]} Nxd4 {[%emt 0:04:38]} 21. Qxd4 {[%emt 0:00:02]} Bc6 {[%emt 0:05:23]} 22. Re3 {[%emt 0:01:46]} Reg8 {[%emt 0:01:40]} 23. Rf2 {[%emt 0:02:00]} Rg4 {[%emt 0:00:21]} 24. Bd1 {[%emt 0:00:26]} R4g6 {[%emt 0:02:07]} 25. Bh5 {[%emt 0:01:00]} R6g7 {[%emt 0:00:03]} 26. Rh3 {[%emt 0:01:35]} Qe7 {[%emt 0:00:57]} 27. Bd1 {[%emt 0:08:16]} Rg6 {[%emt 0:02:48]} 28. Bc2 {[%emt 0:02:30]} Rg4 {[%emt 0:00:03]} 29. Bd1 {[%emt 0:00:49]} R4g6 {[%emt 0:00:04]} 30. Bc2 {[%emt 0:04:09]} Rg4 {[%emt 0:00:05]} 31. Bd1 {[%emt 0:03:15]} R4g6 32. g4 Bd7 1/2-1/2

[Event "11th American Continental Women 2018"]
[Site "Envigado"]
[Date "2018.11.24"]
[Round "9"]
[White "Besso, Guadalupe"]
[Black "Franco Valencia, Beatriz Irene"]
[Result "1/2-1/2"]
[ECO "A41"]
[WhiteElo "2069"]
[BlackElo "2191"]
[Annotator "NA"]
[PlyCount "82"]
[EventDate "2018.11.17"]
[EventType "swiss"]
[EventRounds "9"]
[EventCountry "COL"]
[SourceTitle "playchess.com"]
[Source "ChessBase"]
[SourceQuality "1"]
[TimeControl "40/5400+30:1800+30"]

1. d4 {[%emt 0:00:00]} d6 {[%emt 0:00:00]} 2. Nf3 {[%emt 0:00:00]} Bg4 {[%emt 0:00:00]} 3. c4 {[%emt 0:00:00]} Nd7 {[%emt 0:00:07]} 4. Bg5 {[%emt 0:15:23]} h6 {[%emt 0:04:04]} 5. Bf4 {[%emt 0:04:13]} g5 {[%emt 0:03:54]} 6. Bc1 {[%emt 0:01:39]} Bg7 {[%emt 0:00:15]} 7. Nc3 {[%emt 0:01:53]} e5 {[%emt 0:06:05]} 8. dxe5 {[%emt 0:09:29]} dxe5 {[%emt 0:02:20]} 9. h4 {[%emt 0:06:23]} gxh4 {[%emt 0:14:15]} 10. Nxh4 {[%emt 0:07:32]} Ne7 {[%emt 0:05:38]} 11. Qc2 {[%emt 0:00:31]} Nc5 {[%emt 0:08:30]} 12. g3 {[%emt 0:13:33]} Qd7 {[%emt 0:03:58]} 13. Bg2 {[%emt 0:01:49]} Nf5 {[%emt 0:03:47]} 14. Nxf5 {[%emt 0:06:24]} Bxf5 {[%emt 0:00:06]} 15. Qd2 {[%emt 0:00:43]} c6 {[%emt 0:04:48]} 16. Qxd7+ {[%emt 0:00:07]} Bxd7 {[%emt 0:02:14]} 17. Be3 {[%emt 0:04:43]} Ne6 {[%emt 0:01:03]} 18. Ne4 {[%emt 0:00:08]} Ke7 {[%emt 0:01:03]} 19. Nc5 {[%emt 0:05:01]} Nd4 {[%emt 0:03:52]} 20. Bxd4 {[%emt 0:01:22]} exd4 {[%emt 0:00:04]} 21. O-O-O {[%emt 0:00:54]} Be6 {[%emt 0:07:57]} 22. b3 {[%emt 0:02:09]} Rab8 {[%emt 0:01:35]} 23. Rhe1 {[%emt 0:03:19]} Kd6 {[%emt 0:07:08]} 24. Nxe6 {[%emt 0:06:43]} fxe6 {[%emt 0:00:18]} 25. e3 {[%emt 0:00:16]} c5 {[%emt 0:01:48]} 26. exd4 {[%emt 0:00:25]} Bxd4 {[%emt 0:01:13]} 27. Bh3 Rbe8 {[%emt 0:00:44]} 28. f4 {[%emt 0:05:26]} Rhg8 {[%emt 0:01:24]} 29. g4 {[%emt 0:01:14]} e5 {[%emt 0:02:04]} 30. fxe5+ {[%emt 0:00:29]} Rxe5 {[%emt 0:00:06]} 31. Rxe5 {[%emt 0:00:05]} Kxe5 {[%emt 0:00:05]} 32. Rf1 {[%emt 0:00:07]} Be3+ {[%emt 0:01:34]} 33. Kc2 {[%emt 0:00:51]} Rg7 {[%emt 0:03:47]} 34. Rf5+ {[%emt 0:00:19]} Kd6 {[%emt 0:00:08]} 35. Kd3 {[%emt 0:01:06]} Bd4 {[%emt 0:00:37]} 36. Rh5 {[%emt 0:00:30]} Rg6 {[%emt 0:00:22]} 37. Bg2 {[%emt 0:00:13]} b6 {[%emt 0:01:06]} 38. Be4 {[%emt 0:01:18]} Rxg4 {[%emt 0:02:00]} 39. Rxh6+ {[%emt 0:00:03]} Kc7 {[%emt 0:00:56]} 40. Rh7+ {[%emt 0:00:00]} Rg7 {[%emt 0:00:00]} 41. Rxg7+ {[%emt 0:00:18]} Bxg7 {[%emt 0:00:00]} 1/2-1/2